bitfinex/quotes_ETHUSD_20251111
["timestamp","ask_amount","ask_price","bid_price","bid_amount"]
[1762883184906,0.002,3460.4,3460.3,3.98691666]
[1762883185072,0.002,3460.4,3460.3,4.48691666]
[1762883185275,0.002,3460.4,3460.3,3.72741666]
[1762883185510,0.002,3460.4,3460.3,4.22741666]
[1762883185696,0.002,3460.4,3460.3,3.72741666]
[1762883187811,0.002,3460.4,3460.3,3.46791666]
[1762883188012,0.002,3460.4,3460.3,2.88992283]
[1762883188708,0.002,3460.4,3460.3,4.31442683]
[1762883189012,0.002,3460.4,3460.3,5.47706685]
[1762883189518,0.002,3460.8,3460.7,3.79509281]
[1762883189687,0.002,3460.8,3460.7,4.88744242]
[1762883189888,0.002,3460.8,3460.7,3.61858881]
[1762883190283,0.002,3460.8,3460.7,3.90698469]
[1762883190478,0.002,3460.8,3460.7,3.87808881]
[1762883190686,0.9129,3460.8,3459.8,0.1145]
[1762883190885,0.4567,3460.7,3459.9,0.729]
[1762883191190,0.4567,3460.7,3460.4,2.8897876]
[1762883191394,0.4542,3460.6,3459.9,0.729]
[1762883191613,0.4567,3460.3,3459.9,0.729]
[1762883191915,0.4567,3460.3,3460.0,2.89011633]
[1762883192134,0.4567,3460.3,3459.9,0.729]
[1762883192135,0.9109,3460.3,3459.9,0.729]
[1762883192314,0.4542,3460.7,3460.3,2.88991718]
[1762883192824,0.4542,3460.7,3459.7,6.67754249]
[1762883193112,0.4542,3460.7,3459.8,1.25220425]
[1762883193412,0.4542,3460.7,3460.3,2.88987028]
[1762883194094,0.4542,3460.7,3459.8,0.75220425]
[1762883194481,0.4542,3460.7,3460.1,2.89002482]
[1762883194687,0.002,3460.6,3460.1,2.89002482]
[1762883195116,0.4542,3460.5,3460.2,2.88998315]
[1762883195592,0.4567,3460.3,3459.8,0.75220425]
[1762883195806,0.4567,3460.3,3460.1,2.89004253]
[1762883196005,0.9109,3460.3,3460.1,2.89004253]
[1762883196628,0.9109,3460.3,3460.1,2.89005471]
[1762883196927,0.9109,3460.3,3459.9,2.89023562]
[1762883196928,0.9109,3460.2,3459.7,0.001]
[1762883197224,0.9109,3460.2,3459.9,2.89018664]
[1762883197415,0.9109,3460.2,3460.0,2.89016151]
[1762883197610,0.9109,3460.2,3459.9,2.89023485]
[1762883197802,0.4567,3460.2,3459.7,0.001]
[1762883198003,0.4567,3460.2,3460.0,2.89012035]
[1762883198225,0.4567,3460.2,3459.9,2.89021861]
[1762883198421,0.4567,3460.2,3460.0,2.89016159]
[1762883198626,0.4567,3460.2,3460.1,2.89008988]
[1762883198872,0.4542,3460.5,3460.2,2.88999273]
[1762883198991,0.4542,3460.5,3460.0,2.89011511]
[1762883199190,0.4542,3460.5,3460.1,2.89003296]
[1762883199696,0.4542,3460.5,3460.2,2.88999112]
[1762883200031,0.002,3460.6,3460.5,2.88975581]
[1762883200236,0.002,3460.6,3460.5,3.14925581]
[1762883200438,0.002,3460.6,3460.5,2.88975581]
[1762883202835,0.4587,3460.6,3460.5,2.88975581]
[1762883203035,0.002,3460.6,3460.5,2.88975581]
[1762883204241,0.002,3460.6,3460.5,3.17815336]
[1762883204569,0.002,3460.6,3460.5,11.14156235]
[1762883204867,0.002,3460.6,3460.5,11.64156235]
[1762883205031,0.002,3460.6,3460.5,4.96501986]
[1762883205241,1e-08,3460.8,3460.7,4.52332961]
[1762883205441,1e-08,3460.8,3460.7,7.22291284]
[1762883205645,1e-08,3460.8,3460.7,7.48241284]
[1762883206070,1e-08,3460.8,3460.7,7.88791684]
[1762883208237,1e-08,3460.8,3460.7,7.88791684]
[1762883209882,1e-08,3461.1,3461.0,5.18808314]
[1762883210220,1e-08,3461.1,3461.0,13.52360363]
[1762883210505,1e-08,3461.1,3461.0,13.78310363]
[1762883213069,1e-08,3461.1,3461.0,5.74251439]
[1762883213301,0.91090001,3461.1,3461.0,3.61633834]
[1762883213500,1e-08,3461.1,3461.0,3.61633834]
[1762883214705,1e-08,3461.1,3461.0,4.11633834]
[1762883215108,1e-08,3461.1,3461.0,4.78134234]
[1762883215404,1e-08,3461.1,3461.0,4.28134234]
[1762883215596,1e-08,3461.1,3461.0,5.66963543]
[1762883216783,1e-08,3461.1,3461.0,11.91147987]
[1762883216972,1e-08,3461.1,3461.0,12.17097987]
[1762883217485,1e-08,3461.1,3461.0,11.91147987]
[1762883218077,1e-08,3461.1,3461.0,12.17097987]
[1762883218301,1e-08,3461.1,3461.0,5.66963543]
[1762883218713,1e-08,3461.1,3461.0,5.92913543]
[1762883219913,1e-08,3461.5,3461.4,3.14850444]
[1762883220210,1e-08,3461.5,3461.4,11.92566323]
[1762883221449,1e-08,3461.5,3461.4,12.34870676]
[1762883221621,0.4622,3463.7,3461.7,2.0392448]
[1762883221834,0.4622,3463.7,3463.6,2.88716941]
[1762883222180,0.9613,3463.7,3463.6,2.88716941]
[1762883222817,0.9613,3463.7,3463.2,0.726]
[1762883222984,0.4991,3463.3,3462.2,6.24184444]
[1762883223303,0.4991,3462.8,3462.3,0.726]
[1762883223501,0.6848,3462.4,3462.3,3.61425347]
[1762883223903,1.147,3462.4,3462.3,3.61425347]
[1762883224303,1.147,3462.4,3461.2,9.13101582]
[1762883224504,0.4991,3462.2,3462.1,2.88836524]
[1762883224892,0.9613,3462.2,3462.1,2.88836524]
[1762883226938,0.9613,3462.2,3461.6,0.726]
[1762883227143,0.4991,3462.0,3461.9,2.88858719]
[1762883227540,0.9613,3462.0,3461.9,2.88858719]
[1762883229438,0.9613,3462.0,3460.9,3.03440373]
[1762883229661,0.1857,3462.4,3459.2,3.1575]
[1762883229662,0.4991,3461.3,3460.6,0.5]
[1762883229950,0.086,3461.4,3460.5,0.86717608]
[1762883229951,0.6848,3460.7,3460.5,2.88975581]
[1762883230111,0.6848,3460.7,3460.5,3.25123139]
[1762883230112,0.4991,3460.6,3460.5,3.25123139]
[1762883230529,0.086,3461.4,3460.6,2.88967231]
[1762883230852,0.5482,3461.4,3461.3,2.88908791]
[1762883231065,1.0473,3461.4,3461.3,2.88908791]
[1762883231236,0.002,3462.2,3462.1,2.88842032]
[1762883231438,0.5011,3462.2,3462.1,2.88842032]
[1762883231676,0.002,3462.2,3462.1,2.88842032]
[1762883231823,0.002,3462.2,3462.1,3.38842032]
[1762883232022,0.002,3462.2,3462.1,3.58230852]
[1762883232236,0.002,3462.2,3462.1,4.77300633]
[1762883233026,0.002,3462.2,3462.1,5.03250633]
[1762883233372,0.002,3462.9,3462.8,2.88783643]
[1762883233535,0.002,3462.9,3462.8,4.11283643]
[1762883233736,0.6868,3462.9,3462.8,4.1457116]
[1762883233938,1.149,3462.9,3462.4,0.725]
[1762883234179,0.4622,3462.8,3462.4,0.725]
[1762883234329,0.4622,3462.8,3462.4,2.88817005]
[1762883234330,0.4991,3462.5,3462.4,2.88817005]
[1762883234524,0.4991,3462.5,3462.3,2.88822745]
[1762883234725,0.4622,3462.4,3462.3,2.88822745]
[1762883234941,1.147,3462.4,3462.3,2.88822745]
[1762883236163,1.147,3462.4,3461.7,3.6137182]
[1762883236322,0.1857,3462.4,3462.3,2.88825347]
[1762883236671,0.4622,3462.3,3461.7,1.21359669]
[1762883236975,0.4622,3462.3,3462.2,2.88832798]
[1762883237262,0.9613,3462.3,3462.2,2.88832798]
[1762883238142,0.4991,3462.3,3462.2,2.88832798]
[1762883238348,0.9613,3462.3,3462.2,2.88832798]
[1762883238547,0.1757,3462.9,3462.0,2.88843158]
[1762883238746,0.6379,3462.9,3462.2,0.724]
[1762883238948,0.4991,3462.3,3462.2,0.724]
[1762883239130,0.4991,3462.3,3462.2,3.61232797]
[1762883239331,0.9613,3462.3,3462.2,3.61232797]
[1762883239637,0.4991,3462.3,3462.2,2.88833689]
[1762883240029,0.6379,3462.9,3462.6,2.88793648]
[1762883240253,0.6379,3462.9,3462.0,0.724]
[1762883240254,0.72840576,3462.8,3462.0,0.724]
[1762883240585,0.1757,3462.9,3462.0,0.724]
[1762883240586,0.1757,3462.9,3462.7,2.88788865]
[1762883240773,0.1757,3462.9,3462.8,2.88783643]
[1762883240974,3.2287,3464.1,3463.0,2.88760806]
[1762883241161,0.72845657,3463.7,3462.5,2.88808664]
[1762883241485,0.26625657,3463.6,3463.1,2.88753775]
[1762883241687,0.4991,3463.2,3462.6,0.724]
[1762883241888,0.4622,3463.6,3462.9,2.88773723]
[1762883242064,0.6848,3462.7,3461.6,2.88879172]
[1762883242255,0.6848,3462.7,3462.6,2.88800323]
[1762883242571,0.4622,3462.6,3462.0,0.724]
[1762883242776,0.4991,3462.5,3462.4,2.8881109]
[1762883243155,0.1857,3462.7,3461.9,0.724]
[1762883243356,0.1857,3462.7,3462.1,2.88842032]
[1762883243562,0.1857,3462.7,3462.6,2.88800323]
[1762883243792,0.4991,3462.2,3461.9,0.724]
[1762883243960,0.4991,3462.0,3461.1,0.001]
[1762883244162,0.4622,3462.1,3461.1,0.001]
[1762883244163,0.6479,3462.1,3461.1,0.001]
[1762883244384,0.6848,3461.2,3461.1,2.8902341]
[1762883244567,0.6848,3461.2,3461.1,0.001]
[1762883244787,1.147,3461.2,3461.1,2.89025486]
[1762883245590,1.147,3461.2,3461.1,0.001]
[1762883245959,0.1802,3461.5,3461.4,2.88900444]
[1762883246162,0.1802,3461.5,3461.1,0.001]
[1762883246363,0.4705,3461.2,3461.1,2.89025486]
[1762883246905,0.9605,3461.2,3461.1,2.89025486]
[1762883247599,0.1802,3461.5,3461.4,2.88900444]
[1762883247773,0.1802,3461.7,3461.3,0.02889087]
[1762883247978,0.1802,3461.7,3461.6,2.88883753]
[1762883248499,1.1407,3461.7,3461.1,0.57896027]
[1762883248662,0.4705,3461.5,3461.4,2.88900367]
[1762883248864,0.1802,3461.7,3461.6,2.88883753]
[1762883249405,0.4705,3461.5,3461.1,0.001]
[1762883249606,0.4705,3461.3,3461.2,2.88916678]
[1762883249965,0.9605,3461.3,3461.2,2.88916678]
[1762883250403,0.4705,3461.3,3461.2,2.88916678]
[1762883250972,0.6507,3460.2,3459.7,0.001]
[1762883251170,0.4705,3459.8,3459.6,0.001]
[1762883251423,1.1337408,3459.6,3459.3,0.001]
[1762883251564,0.34904784,3459.6,3459.3,0.001]
[1762883251903,1.56204784,3459.6,3459.3,0.001]
[1762883252065,5.58629621,3459.6,3459.3,0.001]
[1762883252267,0.0873,3459.2,3459.0,0.001]
[1762883252466,0.72844784,3459.1,3458.5,0.001]
[1762883252713,7.64678524,3458.9,3458.5,0.001]
[1762883252865,7.91243308,3458.9,3458.5,0.001]
[1762883253070,8.40243308,3458.9,3458.5,0.001]
[1762883253298,9.12543308,3458.9,3458.5,0.001]
[1762883253486,8.40243308,3458.9,3458.5,0.001]
[1762883253680,2.88358864,3458.9,3458.5,0.001]
[1762883254371,3.26631839,3458.9,3458.5,0.001]
[1762883254567,1.1337408,3458.8,3458.5,0.001]
[1762883254790,7.84568524,3458.6,3458.5,0.001]
[1762883255100,8.60133308,3458.6,3458.5,0.001]
[1762883256697,9.32433308,3458.6,3458.5,0.001]
[1762883257932,9.32433308,3458.6,3458.1,0.001]
[1762883257933,1.1337408,3458.5,3458.1,0.001]
[1762883258136,0.0948,3458.2,3458.1,0.001]
[1762883258628,0.84738823,3458.2,3458.1,0.001]
[1762883259909,1.57038823,3458.2,3458.1,0.001]
[1762883260104,0.35738823,3458.2,3458.1,0.001]
[1762883260306,0.26258823,3458.2,3458.1,0.001]
[1762883260506,0.98558823,3458.2,3458.1,0.001]
[1762883262139,1.94608823,3458.2,3458.1,0.001]
[1762883263334,0.26258823,3458.2,3458.1,3.58136137]
[1762883263510,0.723,3458.7,3458.3,2.89159413]
[1762883263834,0.26213365,3458.6,3458.5,2.89142691]
[1762883264234,0.723,3459.0,3458.9,2.89109254]
[1762883264437,0.723,3459.0,3458.7,2.89118582]
[1762883264438,0.98529958,3459.0,3458.7,2.89118582]
[1762883264627,0.26229958,3458.9,3458.8,2.89117613]
[1762883264834,0.26229958,3458.9,3458.1,1.38766758]
[1762883265130,0.723,3459.0,3458.1,1.38766758]
[1762883265131,0.26229958,3458.8,3458.1,0.6876]
[1762883265326,0.26229958,3458.7,3458.6,2.89127917]
[1762883265840,0.26229958,3458.7,3458.6,3.39087917]
[1762883266138,0.26229958,3458.7,3458.6,3.88847917]
[1762883266741,0.26229958,3458.7,3458.6,4.5664706]
[1762883266938,0.723,3459.5,3458.6,1.67519143]
[1762883267160,0.26261425,3459.4,3458.8,2.89117613]
[1762883267442,0.26461425,3459.3,3459.2,2.89084181]
[1762883267939,0.26461425,3459.3,3459.2,3.39044181]
[1762883268126,0.26461425,3459.3,3459.2,3.88804181]
[1762883268324,0.26461425,3459.3,3459.2,0.9972]
[1762883268525,0.26461425,3459.3,3459.2,3.39044181]
[1762883270324,0.26461425,3459.3,3459.2,0.4996]
[1762883270652,0.26461425,3459.3,3459.2,3.39044181]
[1762883271063,0.26461425,3459.3,3458.9,0.189]
[1762883271226,0.26261425,3459.2,3458.9,0.189]
[1762883271427,0.26261425,3459.1,3459.0,2.89100896]
[1762883271847,0.26261425,3459.1,3459.0,3.39060896]
[1762883272060,0.26261425,3459.1,3459.0,0.4996]
[1762883272361,0.26261425,3459.1,3459.0,3.39060896]
[1762883272746,0.26261425,3459.1,3459.0,0.4996]
[1762883273074,0.26261425,3459.1,3457.5,2.89322706]
[1762883273075,0.26261425,3459.1,3458.8,2.89113583]
[1762883273249,0.26261425,3459.0,3458.5,0.189]
[1762883273452,0.26261425,3458.9,3458.7,2.89123643]
[1762883273750,0.26261425,3458.8,3458.7,2.89125972]
[1762883273949,0.26261425,3458.8,3458.5,0.189]
[1762883274152,0.26261425,3458.7,3458.6,2.89134331]
[1762883274448,0.26261425,3458.7,3458.1,0.912]
[1762883274449,0.26261425,3458.7,3458.1,0.001]
[1762883274622,0.26261425,3458.6,3458.1,2.89276123]
[1762883274829,7.66306159,3458.5,3458.1,0.001]
[1762883275053,0.26261425,3458.4,3458.1,0.001]
[1762883275235,7.40044734,3458.5,3458.1,0.001]
[1762883275236,0.26261425,3458.3,3458.1,2.89274223]
[1762883275435,0.26261425,3458.2,3458.1,0.001]
[1762883276438,0.26261425,3458.2,3458.1,2.89276137]
[1762883277062,0.26261425,3458.2,3458.1,3.36186137]
[1762883278268,0.26261425,3458.2,3458.1,0.001]
[1762883278667,0.26261425,3458.2,3458.1,2.89276137]
[1762883279044,0.26261425,3458.2,3458.1,0.001]
[1762883279763,0.26261425,3458.2,3458.1,2.89276137]
[1762883279942,0.26261425,3458.2,3458.1,3.35886137]
[1762883280953,0.26261425,3458.2,3458.1,3.55296137]
[1762883281126,0.26261425,3458.2,3458.1,4.29263447]
[1762883281332,0.26261425,3458.2,3458.1,2.89276137]
[1762883281531,0.26261425,3458.2,3458.1,0.001]
[1762883281833,0.26261425,3458.2,3458.1,2.89276137]
[1762883283049,0.26261425,3458.2,3458.1,0.001]
[1762883283577,0.26261425,3458.2,3458.1,3.55296137]
[1762883283865,0.26261425,3458.2,3458.1,4.04786137]
[1762883284290,0.26261425,3458.2,3458.1,1.1561]
[1762883284450,0.26261425,3458.2,3458.1,2.89276137]
[1762883284838,0.26261425,3458.2,3458.1,4.04786137]
[1762883285585,0.26261425,3458.2,3458.1,3.55296137]
[1762883285779,0.26261425,3458.2,3458.1,4.04786137]
[1762883286553,0.26261425,3458.2,3458.1,5.53503252]
[1762883287379,0.26261425,3458.2,3458.1,2.89276137]
[1762883287580,0.721,3458.6,3458.1,2.89276137]
[1762883287903,0.73922951,3458.5,3458.3,2.89157696]
[1762883288052,0.26632951,3458.4,3458.2,2.89165462]
[1762883288754,0.4684,3458.3,3458.2,2.89165462]
[1762883288953,0.4684,3458.3,3458.1,0.001]
[1762883289157,0.26636087,3458.2,3458.1,2.89276137]
[1762883289484,0.4729,3459.0,3458.2,0.4661]
[1762883289687,0.26644044,3458.9,3458.8,2.89117613]
[1762883289887,0.98746907,3459.2,3458.8,2.89117613]
[1762883290089,0.26646907,3459.1,3459.0,2.89092664]
[1762883290786,0.26646907,3459.1,3458.2,1.05630348]
[1762883290955,0.26646907,3459.1,3459.0,3.35710896]
[1762883292158,0.26646907,3459.1,3459.0,3.85200896]
[1762883292609,0.721,3459.4,3459.2,2.89084181]
[1762883292771,0.26860585,3459.3,3459.2,3.35694181]
[1762883293918,0.26860585,3459.3,3459.2,0.4661]
[1762883294211,1.1337408,3459.2,3458.1,0.001]
[1762883294378,6.67844734,3458.8,3458.1,0.001]
[1762883294578,0.98660585,3458.7,3458.1,0.001]
[1762883294773,0.26660585,3458.6,3458.1,0.001]
[1762883295089,0.26660585,3458.5,3458.1,0.001]
[1762883295303,0.26660585,3458.4,3458.1,0.001]
[1762883295491,0.98660585,3458.3,3458.1,0.001]
[1762883295678,0.26660585,3458.2,3458.1,0.001]
[1762883297122,1.20790585,3458.2,3458.1,0.001]
[1762883297422,0.405504,3458.1,3456.3,0.001]
[1762883297578,7.33114734,3456.4,3456.3,0.001]
[1762883297781,9.45115566,3456.4,3456.3,0.001]
[1762883298013,9.45115566,3456.4,3454.8,3.54032889]
[1762883298014,1.1337408,3456.3,3454.8,3.54032889]
[1762883298227,6.67844734,3455.5,3454.8,0.64581172]
[1762883298440,0.26626752,3455.4,3455.1,0.1941]
[1762883298579,0.98626752,3455.3,3455.1,0.1941]
[1762883298889,0.98626752,3455.2,3454.7,0.1941]
[1762883299233,0.26626752,3455.1,3454.7,0.1941]
[1762883299381,0.72,3455.2,3454.4,0.689]
[1762883299382,0.26626752,3455.0,3454.4,0.689]
[1762883299584,0.26626752,3454.9,3454.1,2.8950374]
[1762883299926,0.26626752,3454.8,3454.1,0.4949]
[1762883300083,0.98626752,3454.7,3454.6,2.89462693]
[1762883300285,0.98626752,3454.7,3454.5,2.89471299]
[1762883300492,0.26626752,3454.6,3454.5,2.89471299]
[1762883300690,0.98626752,3454.6,3454.5,2.89471299]
[1762883300891,0.98626752,3454.6,3454.2,0.4949]
[1762883301135,0.98626752,3454.6,3454.4,2.8947859]
[1762883301136,0.26626752,3454.5,3454.4,2.8947859]
[1762883301498,0.26626752,3454.5,3454.4,3.8557859]
[1762883303139,0.72,3455.1,3455.0,2.894356]
[1762883303430,0.26408029,3455.1,3455.0,2.894356]
[1762883303616,0.26408029,3455.1,3455.0,3.360456]
[1762883303809,0.26408029,3455.1,3455.0,3.855356]
[1762883304208,6.67844734,3456.6,3455.3,0.5]
[1762883304419,0.72,3456.5,3455.7,0.4661]
[1762883304646,6.67844734,3456.8,3456.3,2.89326143]
[1762883304932,6.67844734,3456.8,3456.4,2.89311552]
[1762883305105,6.67844734,3456.8,3455.8,0.4949]
[1762883305304,6.67844734,3456.8,3455.6,2.8938331]
[1762883305305,0.72,3456.7,3456.6,2.89299399]
[1762883305515,0.72,3456.7,3456.6,2.89296049]
[1762883305750,6.67844734,3457.2,3456.3,0.1874]
[1762883305907,6.67844734,3457.2,3456.3,3.08062476]
[1762883306108,0.72,3457.1,3456.9,2.89274411]
[1762883306318,1.1337408,3457.1,3456.9,2.89274411]
[1762883306731,0.72,3457.0,3456.9,2.89274411]
[1762883307151,6.67844734,3457.2,3457.0,2.89262537]
[1762883307448,7.81218814,3457.2,3457.1,2.89259784]
[1762883307606,1.1337408,3457.1,3457.0,2.89268151]
[1762883308012,0.4754,3458.2,3457.4,2.89231567]
[1762883308273,0.4754,3458.2,3457.1,0.6837]
[1762883308274,0.72,3457.9,3457.1,0.6837]
[1762883308411,0.72,3457.9,3457.6,2.89212711]
[1762883308754,0.002,3458.5,3457.2,0.4768]
[1762883308908,0.002,3458.5,3457.8,0.4963]
[1762883309111,0.722,3458.5,3458.4,2.89151052]
[1762883309359,0.002,3458.5,3458.4,2.89151052]
[1762883309712,0.002,3458.5,3458.4,3.86461052]
[1762883310016,0.002,3458.5,3458.4,3.38781052]
[1762883310253,0.002,3458.5,3458.4,3.86461052]
[1762883310452,0.002,3458.5,3458.4,4.36461052]
[1762883310817,0.002,3458.5,3458.4,5.58647635]
[1762883311056,0.002,3458.5,3458.4,5.18097235]
[1762883311350,0.002,3458.5,3458.4,5.58647635]
[1762883311552,0.002,3458.5,3458.4,2.89151052]
[1762883312420,0.002,3458.5,3458.4,3.38781052]
[1762883312665,0.002,3458.5,3458.4,3.86461052]
[1762883312970,0.002,3458.5,3458.4,4.36461052]
[1762883314664,0.002,3458.5,3458.4,4.77011452]
[1762883314852,0.002,3458.5,3458.4,5.6081867]
[1762883315668,1e-08,3458.9,3458.8,4.29298013]
[1762883315850,1e-08,3458.9,3458.8,5.01198013]
[1762883316050,1e-08,3458.9,3458.8,4.98878013]
[1762883316456,1e-08,3458.9,3458.8,5.48878013]
[1762883317253,1e-08,3458.9,3458.8,6.30804643]
[1762883317655,1e-08,3458.9,3458.8,5.80804643]
[1762883318197,1e-08,3458.9,3458.8,6.30804643]
[1762883318343,1e-08,3458.9,3458.8,5.33124643]
[1762883318683,1e-08,3458.9,3458.8,2.89117613]
[1762883319230,1e-08,3458.9,3458.8,3.38747613]
[1762883319492,1e-08,3458.9,3458.8,4.76978013]
[1762883319677,1e-08,3458.9,3458.8,5.48878013]
[1762883319976,1e-08,3458.9,3458.8,6.61592792]
[1762883322087,1e-08,3458.9,3458.8,7.74966872]
[1762883322286,0.002,3459.3,3458.8,7.74966872]
[1762883322287,1e-08,3459.3,3459.2,3.79634581]
[1762883322580,1e-08,3459.3,3459.2,4.29264581]
[1762883322794,1e-08,3459.3,3459.2,4.76944581]
[1762883322958,1e-08,3459.3,3459.2,7.03022622]
[1762883325171,1e-08,3459.3,3459.2,6.62472222]
[1762883325372,1e-08,3459.3,3459.2,4.10514181]
[1762883326362,0.45400001,3459.3,3459.1,0.5]
[1762883326585,0.26315159,3459.2,3459.1,2.89091172]
[1762883326787,1e-08,3459.3,3459.2,3.86394181]
[1762883326994,1e-08,3459.3,3459.2,5.26294729]
[1762883327288,1e-08,3459.3,3459.2,6.86777968]
[1762883328355,1e-08,3459.3,3459.2,6.36777968]
[1762883328893,1e-08,3459.3,3459.2,6.86777968]
[1762883329186,1e-08,3459.3,3459.2,6.36777968]
[1762883329387,1e-08,3459.3,3459.2,4.52458261]
[1762883329592,1e-08,3459.3,3459.2,3.60884181]
[1762883329886,1e-08,3459.3,3459.2,4.58194181]
[1762883330092,1e-08,3459.3,3459.2,5.08194181]
[1762883330293,1e-08,3459.3,3459.2,4.10884181]
[1762883330466,1e-08,3459.3,3459.2,3.60884181]
[1762883330666,1e-08,3459.3,3459.2,2.89084181]
[1762883330868,1e-08,3459.3,3459.2,3.38714181]
[1762883331368,1e-08,3459.3,3459.2,4.76944581]
[1762883331559,1e-08,3459.3,3459.2,6.74102466]
[1762883332592,0.4754,3460.9,3459.9,2.89025694]
[1762883332796,0.26620347,3460.0,3459.9,4.58135694]
[1762883332960,0.4754,3460.9,3460.8,2.88950531]
[1762883333166,0.73958964,3460.9,3460.8,2.88950531]
[1762883333395,0.26418964,3460.9,3460.8,2.88950531]
[1762883333583,0.26418964,3460.9,3460.8,3.38580531]
[1762883333787,0.26418964,3460.9,3460.8,3.88580531]
[1762883333985,0.26418964,3460.9,3460.8,3.38580531]
[1762883334165,0.26418964,3460.9,3460.8,2.88950531]
[1762883335505,0.78938964,3460.9,3458.2,0.81998609]
[1762883335698,1.1337408,3460.6,3459.3,0.1964]
[1762883335995,1.1337408,3460.6,3459.9,2.89021082]
[1762883336175,0.4897,3460.5,3459.9,2.89022764]
[1762883337399,0.4897,3460.5,3459.4,0.405504]
[1762883337562,1.1337408,3460.6,3459.6,4.08487487]
[1762883337768,1.1337408,3460.6,3460.2,2.88993146]
[1762883338095,1.1337408,3460.6,3460.1,2.89002164]
[1762883338299,0.4952,3460.2,3460.1,2.89002164]
[1762883338500,0.4857,3460.5,3460.1,2.89008988]
[1762883338808,0.4857,3460.5,3459.6,3.60744525]
[1762883338968,0.4857,3460.5,3460.2,2.88993947]
[1762883340304,0.4952,3460.3,3460.1,2.89006296]
[1762883340472,0.1413,3460.0,3459.8,2.89029028]
[1762883340673,0.6748,3459.9,3459.8,2.89029028]
[1762883341166,0.4857,3460.3,3460.1,2.89008155]
[1762883341366,0.4857,3460.3,3460.0,2.89015909]
[1762883341683,1.1337408,3460.6,3459.5,0.717]
[1762883341892,0.4857,3460.3,3460.0,2.89012081]
[1762883342106,0.4857,3460.3,3459.5,0.717]
[1762883342616,0.4857,3460.3,3459.8,2.89029303]
[1762883342914,0.4857,3460.3,3459.1,0.2007]
[1762883342915,0.4857,3460.3,3459.5,2.89052307]
[1762883343214,0.3347,3459.6,3459.2,2.89077024]
[1762883343419,0.3347,3459.6,3459.2,2.89084181]
[1762883343614,0.4952,3459.3,3459.1,2.89190634]
[1762883343782,0.4952,3459.3,3459.1,0.001]
[1762883343989,0.6373,3459.2,3459.1,0.001]
[1762883344212,0.8686,3459.2,3459.1,0.001]
[1762883344399,2.4880408,3459.2,3459.1,0.001]
[1762883344604,1.3543,3459.2,3459.1,0.001]
[1762883345001,1.62075521,3459.2,3459.1,0.001]
[1762883345717,2.02625921,3459.2,3459.1,0.001]
[1762883346022,3.16000001,3459.2,3459.1,0.001]
[1762883346392,6.05084182,3459.2,3459.1,0.001]
[1762883346602,2.03749601,3459.2,3459.1,0.001]
[1762883346814,2.75449601,3459.2,3459.1,0.001]
[1762883347322,6.42057207,3459.2,3459.1,0.001]
[1762883347495,6.42057207,3459.2,3458.5,0.001]
[1762883347496,7.38219812,3458.9,3458.5,0.001]
[1762883347685,8.67795333,3458.9,3458.5,0.001]
[1762883347889,9.16365333,3458.9,3458.5,0.001]
[1762883349354,1.1337408,3458.8,3458.5,0.001]
[1762883349551,0.4952,3458.6,3458.5,0.001]
[1762883349718,0.76165521,3458.6,3458.5,0.001]
[1762883349929,1.24735521,3458.6,3458.5,0.001]
[1762883350760,1.96435521,3458.6,3458.5,0.001]
[1762883351416,1.24735521,3458.6,3458.5,0.001]
[1762883351618,1.24735521,3458.6,3458.5,2.89242691]
[1762883351619,0.26645521,3458.6,3458.5,2.89242691]
[1762883351834,0.4857,3459.7,3459.1,2.89091903]
[1762883352047,0.98233026,3459.4,3458.5,0.4849]
[1762883352354,0.26533026,3459.3,3458.5,3.37629154]
[1762883352523,0.26533026,3459.3,3459.2,2.89084181]
[1762883352856,0.26533026,3459.3,3459.1,2.8908668]
[1762883353014,0.26533026,3459.3,3458.6,2.89134331]
[1762883353015,0.26533026,3459.3,3459.2,2.89084181]
[1762883353216,0.0732,3460.9,3459.8,2.89026746]
[1762883353217,6.24845732,3460.1,3459.8,2.89026746]
[1762883353416,6.24845732,3460.1,3459.2,0.77298418]
[1762883353417,0.98137113,3459.9,3459.7,2.89038981]
[1762883353655,0.26537113,3459.8,3459.6,2.89043687]
[1762883353824,0.26537113,3459.8,3459.7,2.89042402]
[1762883354020,0.4857,3459.7,3458.6,0.4774]
[1762883354253,0.4857,3459.7,3459.6,2.89050757]
[1762883354458,1.46710207,3459.7,3459.6,2.89050757]
[1762883354616,1.96230207,3459.7,3459.6,2.89050757]
[1762883354819,0.26540207,3459.7,3459.6,2.89050757]
[1762883355011,0.4857,3460.4,3459.8,2.89034048]
[1762883355251,0.26541572,3460.3,3460.2,2.89000635]
[1762883355435,0.98141572,3460.3,3459.6,0.4839]
[1762883355749,0.26541572,3460.2,3460.1,2.89006395]
[1762883355931,0.002,3459.9,3459.8,2.89034048]
[1762883356526,0.002,3459.9,3459.8,4.95862033]
[1762883356741,0.002,3459.9,3459.8,5.33522093]
[1762883357277,0.002,3460.9,3460.8,3.38950531]
[1762883357478,0.002,3460.9,3460.8,3.37340531]
[1762883357645,0.002,3460.9,3460.8,4.35080531]
[1762883357848,0.002,3460.9,3460.8,5.14644587]
[1762883358075,0.002,3460.9,3460.8,4.64644587]
[1762883358247,0.002,3460.9,3460.8,5.14644587]
[1762883358647,0.002,3460.9,3460.8,4.64644587]
[1762883359044,1.166,3460.9,3459.8,0.57807645]
[1762883359367,0.26533871,3460.8,3459.9,2.89025694]
[1762883359565,0.716,3460.7,3460.2,2.89000563]
[1762883359750,0.716,3460.7,3460.2,2.88999703]
[1762883359951,0.4857,3460.6,3460.3,2.88990909]
[1762883360152,0.4857,3460.6,3460.2,2.89000571]
[1762883360353,0.4857,3460.6,3459.6,0.1997]
[1762883360354,0.4952,3460.4,3459.6,0.1997]
[1762883360565,0.4952,3460.4,3460.2,2.88995398]
[1762883360951,0.716,3460.6,3460.3,2.88992283]
[1762883361148,0.4857,3460.5,3459.6,3.09016701]
[1762883361446,0.2433,3459.7,3458.8,2.89115009]